[Event "Live Chess"]
[Site "Chess.com"]
[Date "2024.06.02"]
[Round "-"]
[White "TigerTank70"]
[Black "KeithArkell"]
[Result "0-1"]
[WhiteElo "2234"]
[BlackElo "2424"]
[TimeControl "300"]
[EndTime "17:01:11 PDT"]
[Termination "KeithArkell won by resignation"]

1. e4 {[%clk 0:04:57.3]} 1... c6 {[%clk 0:04:59.1]} 2. d4 {[%clk 0:04:56.1]}
2... d5 {[%clk 0:04:58]} 3. e5 {[%clk 0:04:55.5]} 3... c5 {[%clk 0:04:57.2]} 4.
c3 {[%clk 0:04:54.2]} 4... cxd4 {[%clk 0:04:56.2]} 5. cxd4 {[%clk 0:04:52.9]}
5... Nc6 {[%clk 0:04:55.6]} 6. Nc3 {[%clk 0:04:50.8]} 6... Bf5 {[%clk
0:04:54.1]} 7. Nf3 {[%clk 0:04:47.7]} 7... e6 {[%clk 0:04:52.5]} 8. Bd3 {[%clk
0:04:46.6]} 8... Bxd3 {[%clk 0:04:51]} 9. Qxd3 {[%clk 0:04:46.5]} 9... Nge7
{[%clk 0:04:49.8]} 10. O-O {[%clk 0:04:39.5]} 10... Nf5 {[%clk 0:04:43.7]} 11.
g4 {[%clk 0:04:36.3]} 11... Nh4 {[%clk 0:04:40.6]} 12. Nb5 {[%clk 0:04:25.5]}
12... Nxf3+ {[%clk 0:04:37.7]} 13. Qxf3 {[%clk 0:04:23.8]} 13... a6 {[%clk
0:04:37.3]} 14. Bg5 {[%clk 0:04:11.9]} 14... Qd7 {[%clk 0:04:22.5]} 15. Nc3
{[%clk 0:03:38.8]} 15... Nxd4 {[%clk 0:04:20.7]} 16. Qd3 {[%clk 0:03:31.1]}
16... Nc6 {[%clk 0:04:16.1]} 17. f4 {[%clk 0:03:29.8]} 17... Bc5+ {[%clk
0:04:13.3]} 18. Kh1 {[%clk 0:03:28.5]} 18... O-O {[%clk 0:04:11.8]} 19. Bh4
{[%clk 0:03:27.4]} 19... Bd4 {[%clk 0:04:00.7]} 20. Rad1 {[%clk 0:03:18.2]}
20... Bxc3 {[%clk 0:03:59.5]} 21. bxc3 {[%clk 0:03:17.3]} 21... b5 {[%clk
0:03:57.9]} 22. Rf3 {[%clk 0:03:15.9]} 22... f6 {[%clk 0:03:54.1]} 23. Rh3
{[%clk 0:03:13.4]} 23... fxe5 {[%clk 0:03:48.3]} 24. fxe5 {[%clk 0:03:05.2]}
24... Nxe5 {[%clk 0:03:47.2]} 25. Qd4 {[%clk 0:03:01.9]} 25... Nf3 {[%clk
0:03:35.4]} 26. Qd3 {[%clk 0:02:57.5]} 26... Nxh4 {[%clk 0:03:33.7]} 27. Rxh4
{[%clk 0:02:56.5]} 27... g6 {[%clk 0:03:32.9]} 28. g5 {[%clk 0:02:49.4]} 28...
Qf7 {[%clk 0:03:31.8]} 29. Rh3 {[%clk 0:02:45.7]} 29... Qf5 {[%clk 0:03:28.9]}
30. Qe3 {[%clk 0:02:35.3]} 30... Rf7 {[%clk 0:03:24.1]} 31. Re1 {[%clk
0:02:32.4]} 31... Raf8 {[%clk 0:03:21.9]} 32. Rg3 {[%clk 0:02:29.3]} 32... Qe4+
{[%clk 0:03:01.6]} 33. Qxe4 {[%clk 0:02:26.6]} 33... dxe4 {[%clk 0:03:01.5]} 34.
Rxe4 {[%clk 0:02:25.9]} 34... Rf2 {[%clk 0:03:00.6]} 35. Rg2 {[%clk 0:02:19.5]}
35... Rf1+ {[%clk 0:02:59.8]} 36. Rg1 {[%clk 0:02:18.6]} 36... R8f2 {[%clk
0:02:57.8]} 37. Rxe6 {[%clk 0:02:07.4]} 37... Rxg1+ {[%clk 0:02:55.3]} 38. Kxg1
{[%clk 0:02:07.3]} 38... Rxa2 {[%clk 0:02:54.2]} 39. Rc6 {[%clk 0:02:02.3]}
39... a5 {[%clk 0:02:50.5]} 40. Rb6 {[%clk 0:01:59.4]} 40... Rb2 {[%clk
0:02:48.8]} 41. c4 {[%clk 0:01:56.4]} 41... b4 {[%clk 0:02:48.2]} 42. c5 {[%clk
0:01:55.7]} 42... Rc2 {[%clk 0:02:47.5]} 43. Rb5 {[%clk 0:01:54.2]} 43... b3
{[%clk 0:02:44.9]} 44. Rxb3 {[%clk 0:01:48.8]} 44... Rxc5 {[%clk 0:02:43.7]} 45.
Rb7 {[%clk 0:01:47.8]} 45... Rxg5+ {[%clk 0:02:42]} 46. Kf2 {[%clk 0:01:46.7]}
46... Rh5 {[%clk 0:02:40.7]} 47. Kg3 {[%clk 0:01:44]} 47... Kf8 {[%clk
0:02:39.7]} 48. Ra7 {[%clk 0:01:40.8]} 48... Ke8 {[%clk 0:02:38.8]} 49. h4
{[%clk 0:01:40.1]} 49... Kd8 {[%clk 0:02:37.9]} 0-1

[Event "Live Chess"]
[Site "Chess.com"]
[Date "2024.06.02"]
[Round "-"]
[White "AlexanderMatlak"]
[Black "Cruiseylee78"]
[Result "1-0"]
[WhiteElo "2402"]
[BlackElo "1687"]
[TimeControl "300"]
[EndTime "17:01:49 PDT"]
[Termination "AlexanderMatlak won by resignation"]

1. c4 {[%clk 0:04:55.6]} 1... d6 {[%clk 0:04:58]} 2. Nf3 {[%clk 0:04:53.9]} 2...
Nd7 {[%clk 0:04:56.3]} 3. Nc3 {[%clk 0:04:52.4]} 3... e5 {[%clk 0:04:55.4]} 4.
g3 {[%clk 0:04:51.4]} 4... Be7 {[%clk 0:04:53.7]} 5. Bg2 {[%clk 0:04:50.8]} 5...
h6 {[%clk 0:04:53.2]} 6. O-O {[%clk 0:04:49.8]} 6... Ngf6 {[%clk 0:04:53.1]} 7.
b4 {[%clk 0:04:48.3]} 7... c6 {[%clk 0:04:52.4]} 8. b5 {[%clk 0:04:47.3]} 8...
Qc7 {[%clk 0:04:50.5]} 9. a4 {[%clk 0:04:45.5]} 9... g5 {[%clk 0:04:48]} 10. a5
{[%clk 0:04:43.8]} 10... Nf8 {[%clk 0:04:44.8]} 11. a6 {[%clk 0:04:42.4]} 11...
b6 {[%clk 0:04:43.3]} 12. bxc6 {[%clk 0:04:41]} 12... Ng6 {[%clk 0:04:36.7]} 13.
Nb5 {[%clk 0:04:39.8]} 13... Qd8 {[%clk 0:04:29.6]} 14. c7 {[%clk 0:04:36.2]}
14... Qd7 {[%clk 0:04:28.6]} 15. Nxe5 {[%clk 0:04:24.9]} 15... dxe5 {[%clk
0:04:21.7]} 16. Bxa8 {[%clk 0:04:24.4]} 16... Bxa6 {[%clk 0:04:16.8]} 17. Rxa6
{[%clk 0:04:22.4]} 17... O-O {[%clk 0:04:14.1]} 18. Rxa7 {[%clk 0:04:20.6]}
18... Bb4 {[%clk 0:04:06.7]} 19. Bg2 {[%clk 0:04:12.7]} 19... Rc8 {[%clk
0:03:46.9]} 20. Bb2 {[%clk 0:04:01.2]} 1-0

[Event "Live Chess"]
[Site "Chess.com"]
[Date "2024.06.02"]
[Round "-"]
[White "TheSmoulderingMaster"]
[Black "educatedlad"]
[Result "0-1"]
[WhiteElo "1762"]
[BlackElo "1741"]
[TimeControl "300"]
[EndTime "17:02:03 PDT"]
[Termination "educatedlad won by resignation"]

1. e4 {[%clk 0:04:57.7]} 1... c5 {[%clk 0:04:58.5]} 2. Nf3 {[%clk 0:04:56.3]}
2... e6 {[%clk 0:04:57.5]} 3. d4 {[%clk 0:04:54.4]} 3... cxd4 {[%clk 0:04:57.4]}
4. Nxd4 {[%clk 0:04:53.3]} 4... Nc6 {[%clk 0:04:55.3]} 5. Nc3 {[%clk 0:04:52.5]}
5... a6 {[%clk 0:04:53.2]} 6. Be3 {[%clk 0:04:50.4]} 6... Nf6 {[%clk 0:04:50.1]}
7. f3 {[%clk 0:04:47.8]} 7... d5 {[%clk 0:04:47.6]} 8. Nxc6 {[%clk 0:04:45.4]}
8... bxc6 {[%clk 0:04:46.4]} 9. Qd2 {[%clk 0:04:43.9]} 9... c5 {[%clk
0:04:28.9]} 10. exd5 {[%clk 0:04:41.6]} 10... exd5 {[%clk 0:04:27.3]} 11. Bg5
{[%clk 0:04:38.5]} 11... d4 {[%clk 0:04:25]} 12. Ne4 {[%clk 0:04:36.5]} 12...
Be7 {[%clk 0:04:22]} 13. Bxf6 {[%clk 0:04:34.5]} 13... Bxf6 {[%clk 0:04:20.8]}
14. Bc4 {[%clk 0:04:31.6]} 14... Qe7 {[%clk 0:04:15.9]} 15. O-O {[%clk
0:04:29.7]} 15... O-O {[%clk 0:04:11.6]} 16. Rae1 {[%clk 0:04:24.4]} 16... Qd8
{[%clk 0:04:04.4]} 17. Qf4 {[%clk 0:04:21.9]} 17... Be6 {[%clk 0:03:49.6]} 18.
Bd3 {[%clk 0:04:19.7]} 18... c4 {[%clk 0:03:45.5]} 19. Be2 {[%clk 0:04:16]}
19... d3 {[%clk 0:03:34.6]} 20. cxd3 {[%clk 0:04:14.5]} 20... cxd3 {[%clk
0:03:34.5]} 21. Bd1 {[%clk 0:04:11.2]} 21... Bd4+ {[%clk 0:03:32.7]} 22. Kh1
{[%clk 0:04:09.6]} 22... Qb8 {[%clk 0:03:28.7]} 23. Qh4 {[%clk 0:04:05.5]} 23...
Qxb2 {[%clk 0:03:16.3]} 24. Ng5 {[%clk 0:04:03.8]} 24... h6 {[%clk 0:03:11.7]}
25. Nxe6 {[%clk 0:04:01.9]} 25... fxe6 {[%clk 0:03:10.7]} 26. Re4 {[%clk
0:03:54.9]} 26... Bf6 {[%clk 0:03:07.7]} 27. Qg4 {[%clk 0:03:42.7]} 27... Rab8
{[%clk 0:02:51.8]} 28. Bb3 {[%clk 0:03:38.4]} 28... d2 {[%clk 0:02:44.8]} 29.
Qxe6+ {[%clk 0:03:32]} 29... Kh8 {[%clk 0:02:42.7]} 30. Rd1 {[%clk 0:03:28.1]}
30... Qc1 {[%clk 0:02:38.7]} 31. Re2 {[%clk 0:03:14.9]} 31... Rfe8 {[%clk
0:02:20.3]} 32. Qxe8+ {[%clk 0:03:01.3]} 32... Rxe8 {[%clk 0:02:18.9]} 33. Rxe8+
{[%clk 0:03:00.1]} 33... Kh7 {[%clk 0:02:17.6]} 34. Re2 {[%clk 0:02:56]} 34...
Bc3 {[%clk 0:02:09]} 35. Re3 {[%clk 0:02:53.4]} 35... Bb4 {[%clk 0:02:02.9]} 36.
Re4 {[%clk 0:02:49.3]} 36... a5 {[%clk 0:02:00.3]} 37. Rc4 {[%clk 0:02:42.8]}
37... Qb2 {[%clk 0:01:56.8]} 38. Bc2+ {[%clk 0:02:37.3]} 38... Kg8 {[%clk
0:01:53.2]} 39. Bb3 {[%clk 0:02:34]} 39... Kf8 {[%clk 0:01:44]} 40. Rc2 {[%clk
0:02:25.2]} 40... Qe5 {[%clk 0:01:37.9]} 41. Rc8+ {[%clk 0:02:14.4]} 41... Ke7
{[%clk 0:01:34.4]} 42. h3 {[%clk 0:02:04.7]} 42... Bd6 {[%clk 0:01:12.3]} 43.
Kg1 {[%clk 0:01:47.9]} 43... Qe1+ {[%clk 0:00:56.3]} 0-1

[Event "Live Chess"]
[Site "Chess.com"]
[Date "2024.06.02"]
[Round "-"]
[White "ACM42"]
[Black "Dhaydon19"]
[Result "0-1"]
[WhiteElo "2167"]
[BlackElo "2678"]
[TimeControl "300"]
[EndTime "17:03:10 PDT"]
[Termination "Dhaydon19 won by resignation"]

1. e4 {[%clk 0:04:56.4]} 1... c6 {[%clk 0:04:58.3]} 2. d4 {[%clk 0:04:54.3]}
2... d5 {[%clk 0:04:57.9]} 3. e5 {[%clk 0:04:52.9]} 3... c5 {[%clk 0:04:56.9]}
4. c3 {[%clk 0:04:50.4]} 4... cxd4 {[%clk 0:04:56.2]} 5. cxd4 {[%clk 0:04:49.5]}
5... Nc6 {[%clk 0:04:55.9]} 6. Nc3 {[%clk 0:04:48.7]} 6... e6 {[%clk 0:04:52.1]}
7. Nf3 {[%clk 0:04:46.3]} 7... Nge7 {[%clk 0:04:51.1]} 8. Bd3 {[%clk 0:04:43.3]}
8... a6 {[%clk 0:04:50.2]} 9. O-O {[%clk 0:04:42.2]} 9... Nf5 {[%clk 0:04:48.7]}
10. Be3 {[%clk 0:04:39.8]} 10... Be7 {[%clk 0:04:46.9]} 11. a3 {[%clk 0:04:38]}
11... O-O {[%clk 0:04:42.4]} 12. Rc1 {[%clk 0:04:36.7]} 12... Nxe3 {[%clk
0:04:41]} 13. fxe3 {[%clk 0:04:35.4]} 13... f6 {[%clk 0:04:37.7]} 14. exf6
{[%clk 0:04:09.1]} 14... Bxf6 {[%clk 0:04:33.8]} 15. Qb3 {[%clk 0:04:02.4]}
15... Na5 {[%clk 0:04:24]} 16. Qa2 {[%clk 0:03:56.2]} 16... g6 {[%clk
0:04:18.5]} 17. Kh1 {[%clk 0:03:55]} 17... Bd7 {[%clk 0:04:08.1]} 18. e4 {[%clk
0:03:51.4]} 18... dxe4 {[%clk 0:04:03.3]} 19. Nxe4 {[%clk 0:03:48.6]} 19... Be7
{[%clk 0:04:01.9]} 20. b4 {[%clk 0:03:45.1]} 20... Nc6 {[%clk 0:03:59.2]} 21.
Nc5 {[%clk 0:03:40.3]} 21... Bxc5 {[%clk 0:03:57.8]} 22. dxc5 {[%clk 0:03:29.1]}
22... Qe7 {[%clk 0:03:52]} 23. Rce1 {[%clk 0:03:24.2]} 23... Rae8 {[%clk
0:03:49.3]} 24. Bc4 {[%clk 0:03:23]} 24... Kg7 {[%clk 0:03:45.2]} 25. a4 {[%clk
0:02:54.8]} 25... Rf4 {[%clk 0:03:38.4]} 26. Qb3 {[%clk 0:02:43.2]} 26... Qf6
{[%clk 0:03:34.9]} 27. Nd2 {[%clk 0:02:24]} 27... Nd4 {[%clk 0:03:25.5]} 28. Qd1
{[%clk 0:02:17.7]} 28... Bc6 {[%clk 0:03:22.4]} 29. Ne4 {[%clk 0:01:44]} 29...
Bxe4 {[%clk 0:03:16.7]} 30. Rxe4 {[%clk 0:01:37.5]} 30... Rxf1+ {[%clk
0:03:11.5]} 31. Qxf1 {[%clk 0:01:36.5]} 31... Qxf1+ {[%clk 0:03:05.9]} 32. Bxf1
{[%clk 0:01:35.7]} 32... e5 {[%clk 0:03:05]} 33. Kg1 {[%clk 0:01:28.7]} 33...
Kf6 {[%clk 0:03:01.8]} 34. Bd3 {[%clk 0:01:19.4]} 34... a5 {[%clk 0:02:56.7]}
35. bxa5 {[%clk 0:01:13.5]} 35... Ra8 {[%clk 0:02:52.2]} 36. a6 {[%clk
0:01:08.8]} 36... bxa6 {[%clk 0:02:51.4]} 37. Kf2 {[%clk 0:01:07]} 37... a5
{[%clk 0:02:47.9]} 38. Bb5 {[%clk 0:00:45]} 38... Rc8 {[%clk 0:02:45]} 39. c6
{[%clk 0:00:40.7]} 39... Nxc6 {[%clk 0:02:43.3]} 40. Rc4 {[%clk 0:00:36.3]}
40... Ne7 {[%clk 0:02:42.3]} 41. Rh4 {[%clk 0:00:23.7]} 41... h5 {[%clk
0:02:40.4]} 42. g4 {[%clk 0:00:19.3]} 42... Rc2+ {[%clk 0:02:31.4]} 43. Ke1
{[%clk 0:00:14.6]} 43... Kg5 {[%clk 0:02:25]} 44. Rh3 {[%clk 0:00:10.8]} 44...
hxg4 {[%clk 0:02:24.2]} 45. Re3 {[%clk 0:00:09.8]} 45... Kf4 {[%clk 0:02:21.2]}
46. Rb3 {[%clk 0:00:07.3]} 46... Rxh2 {[%clk 0:02:19]} 0-1

[Event "Live Chess"]
[Site "Chess.com"]
[Date "2024.06.02"]
[Round "-"]
[White "grillage"]
[Black "GwaryTek"]
[Result "1-0"]
[WhiteElo "1859"]
[BlackElo "1901"]
[TimeControl "300"]
[EndTime "17:03:16 PDT"]
[Termination "grillage won on time"]

1. d4 {[%clk 0:04:56.2]} 1... Nf6 {[%clk 0:04:59.5]} 2. Nf3 {[%clk 0:04:55.3]}
2... c5 {[%clk 0:04:58.5]} 3. g3 {[%clk 0:04:49.2]} 3... cxd4 {[%clk 0:04:58.4]}
4. Nxd4 {[%clk 0:04:47.8]} 4... Nc6 {[%clk 0:04:58]} 5. Bg2 {[%clk 0:04:45.6]}
5... e6 {[%clk 0:04:56.7]} 6. O-O {[%clk 0:04:39.3]} 6... Bc5 {[%clk 0:04:54.9]}
7. c3 {[%clk 0:04:37.3]} 7... O-O {[%clk 0:04:52.5]} 8. Bg5 {[%clk 0:04:33.5]}
8... h6 {[%clk 0:04:49.2]} 9. Be3 {[%clk 0:04:31.8]} 9... Qe7 {[%clk 0:04:45.7]}
10. Nxc6 {[%clk 0:04:28]} 10... bxc6 {[%clk 0:04:45.6]} 11. Bxc5 {[%clk
0:04:26.9]} 11... Qxc5 {[%clk 0:04:45.2]} 12. Nd2 {[%clk 0:04:24.4]} 12... Rb8
{[%clk 0:04:43.2]} 13. Nb3 {[%clk 0:04:22.1]} 13... Qh5 {[%clk 0:04:37.7]} 14.
h3 {[%clk 0:04:19.3]} 14... d5 {[%clk 0:04:23.5]} 15. e3 {[%clk 0:04:17.1]}
15... e5 {[%clk 0:04:22.1]} 16. Qxh5 {[%clk 0:04:15.3]} 16... Nxh5 {[%clk
0:04:21.4]} 17. Rab1 {[%clk 0:04:10.6]} 17... Bf5 {[%clk 0:04:19.7]} 18. Rbd1
{[%clk 0:04:06.7]} 18... Bc2 {[%clk 0:04:14.1]} 19. Ra1 {[%clk 0:03:57]} 19...
Rfe8 {[%clk 0:03:55.8]} 20. Na5 {[%clk 0:03:50.7]} 20... Re6 {[%clk 0:03:45.2]}
21. b4 {[%clk 0:03:46.1]} 21... Nf6 {[%clk 0:03:25.9]} 22. Rac1 {[%clk
0:03:42.1]} 22... Bd3 {[%clk 0:03:14.5]} 23. Rfd1 {[%clk 0:03:38.5]} 23... Be2
{[%clk 0:03:00.4]} 24. Rd2 {[%clk 0:03:36.5]} 24... Ba6 {[%clk 0:02:56.6]} 25.
h4 {[%clk 0:03:28.6]} 25... Kf8 {[%clk 0:02:47.3]} 26. Bh3 {[%clk 0:03:27.1]}
26... Rd6 {[%clk 0:02:46.8]} 27. Nb3 {[%clk 0:03:22.7]} 27... Ne4 {[%clk
0:02:44.8]} 28. Rdd1 {[%clk 0:03:01.3]} 28... g6 {[%clk 0:02:12.5]} 29. Bg2
{[%clk 0:02:59.6]} 29... f5 {[%clk 0:01:59.6]} 30. Bf3 {[%clk 0:02:47.3]} 30...
Nf6 {[%clk 0:01:50.6]} 31. Nc5 {[%clk 0:02:43.7]} 31... Bc4 {[%clk 0:01:42.2]}
32. Rd2 {[%clk 0:02:41.8]} 32... g5 {[%clk 0:01:35.7]} 33. hxg5 {[%clk
0:02:38.5]} 33... hxg5 {[%clk 0:01:35.6]} 34. a3 {[%clk 0:02:36.4]} 34... Ke7
{[%clk 0:01:27]} 35. Kg2 {[%clk 0:02:34.7]} 35... Rh8 {[%clk 0:01:21.8]} 36. Rh1
{[%clk 0:02:33.2]} 36... Rxh1 {[%clk 0:00:42.1]} 37. Kxh1 {[%clk 0:02:30.9]}
37... g4 {[%clk 0:00:37]} 38. Bd1 {[%clk 0:02:29.2]} 38... Rd8 {[%clk
0:00:29.1]} 39. Ba4 {[%clk 0:02:27.1]} 39... Rh8+ {[%clk 0:00:17.2]} 40. Kg2
{[%clk 0:02:26]} 40... Kd6 {[%clk 0:00:15.2]} 41. Bc2 {[%clk 0:02:22.1]} 41...
e4 {[%clk 0:00:08.7]} 42. Ba4 {[%clk 0:02:09.2]} 42... Nh7 {[%clk 0:00:03.6]}
43. Nb7+ {[%clk 0:02:07.1]} 43... Kc7 {[%clk 0:00:02.2]} 44. Na5 {[%clk
0:02:05.7]} 44... Ng5 {[%clk 0:00:01.2]} 45. Nxc6 {[%clk 0:01:58.5]} 45... Nf3
{[%clk 0:00:00.3]} 46. Rd3 {[%clk 0:00:34]} 46... Rh2+ {[%clk 0:00:00.2]} 47.
Kf1 {[%clk 0:00:32.6]} 1-0

[Event "Live Chess"]
[Site "Chess.com"]
[Date "2024.06.02"]
[Round "-"]
[White "dmitro74"]
[Black "wadsy27"]
[Result "0-1"]
[WhiteElo "1729"]
[BlackElo "2581"]
[TimeControl "300"]
[EndTime "17:03:35 PDT"]
[Termination "wadsy27 won by resignation"]

1. d4 {[%clk 0:04:57.7]} 1... d5 {[%clk 0:04:57.1]} 2. c4 {[%clk 0:04:56.3]}
2... c6 {[%clk 0:04:56.8]} 3. Nc3 {[%clk 0:04:54.8]} 3... Nf6 {[%clk 0:04:56]}
4. Nf3 {[%clk 0:04:53]} 4... a6 {[%clk 0:04:54.7]} 5. e3 {[%clk 0:04:50.3]} 5...
b5 {[%clk 0:04:53.3]} 6. cxd5 {[%clk 0:04:47.6]} 6... cxd5 {[%clk 0:04:52.3]} 7.
a3 {[%clk 0:04:45.3]} 7... e6 {[%clk 0:04:51]} 8. b4 {[%clk 0:04:35]} 8... Bd6
{[%clk 0:04:48.9]} 9. Bd3 {[%clk 0:04:29.8]} 9... O-O {[%clk 0:04:47.9]} 10. O-O
{[%clk 0:04:28.3]} 10... Nbd7 {[%clk 0:04:47]} 11. Nd2 {[%clk 0:04:18.8]} 11...
Nb6 {[%clk 0:04:41.1]} 12. Nb3 {[%clk 0:04:17]} 12... Nc4 {[%clk 0:04:40.1]} 13.
Nc5 {[%clk 0:04:15.7]} 13... Qc7 {[%clk 0:04:35.8]} 14. g3 {[%clk 0:04:06.3]}
14... e5 {[%clk 0:04:34.8]} 15. Bxc4 {[%clk 0:03:58.5]} 15... dxc4 {[%clk
0:04:32.8]} 16. N3e4 {[%clk 0:03:50]} 16... Nxe4 {[%clk 0:04:27.1]} 17. Nxe4
{[%clk 0:03:46.1]} 17... exd4 {[%clk 0:04:26.2]} 18. Nxd6 {[%clk 0:03:42.2]}
18... Qxd6 {[%clk 0:04:24.8]} 19. Qxd4 {[%clk 0:03:39]} 19... Qxd4 {[%clk
0:04:24]} 20. exd4 {[%clk 0:03:38]} 20... Bb7 {[%clk 0:04:20.1]} 21. Be3 {[%clk
0:03:31.4]} 21... Rad8 {[%clk 0:04:17.6]} 22. f4 {[%clk 0:03:23]} 22... Rfe8
{[%clk 0:04:15.7]} 23. Kf2 {[%clk 0:03:18]} 23... f5 {[%clk 0:04:08.2]} 24. Rac1
{[%clk 0:03:13.1]} 24... Be4 {[%clk 0:04:07.1]} 25. Rc3 {[%clk 0:03:07.3]} 25...
Kf7 {[%clk 0:04:05.4]} 26. h3 {[%clk 0:03:03.6]} 26... Re6 {[%clk 0:04:03.9]}
27. g4 {[%clk 0:02:59.4]} 27... g6 {[%clk 0:04:02]} 28. g5 {[%clk 0:02:51.1]}
28... h6 {[%clk 0:03:56.9]} 29. h4 {[%clk 0:02:49.6]} 29... hxg5 {[%clk
0:03:55.8]} 30. fxg5 {[%clk 0:02:42.6]} 30... Bd3 {[%clk 0:03:53.7]} 31. Re1
{[%clk 0:02:35.2]} 31... Re4 {[%clk 0:03:46.6]} 32. Kf3 {[%clk 0:01:25.2]} 32...
Rde8 {[%clk 0:03:40.1]} 33. Rcc1 {[%clk 0:01:23]} 33... Rxh4 {[%clk 0:03:38.7]}
34. Bf4 {[%clk 0:01:20.7]} 34... Be4+ {[%clk 0:03:35.5]} 35. Rxe4 {[%clk
0:01:11.9]} 35... Rxe4 {[%clk 0:03:25]} 36. Bg3 {[%clk 0:01:10.5]} 36... Rhg4
{[%clk 0:03:11.4]} 37. d5 {[%clk 0:01:07.9]} 37... Rd4 {[%clk 0:03:09.9]} 38. d6
{[%clk 0:01:06.6]} 38... Rd3+ {[%clk 0:03:08.6]} 39. Kf2 {[%clk 0:01:02.7]}
39... Rgxg3 {[%clk 0:03:07.5]} 40. Re1 {[%clk 0:01:01.8]} 40... Rgf3+ {[%clk
0:03:00.7]} 41. Kg2 {[%clk 0:00:57.3]} 41... Rfe3 {[%clk 0:03:00.1]} 42. d7
{[%clk 0:00:48.8]} 42... Rxe1 {[%clk 0:02:58.6]} 0-1

[Event "Live Chess"]
[Site "Chess.com"]
[Date "2024.06.02"]
[Round "-"]
[White "gobbles19"]
[Black "Duke_of_Bebington"]
[Result "1-0"]
[WhiteElo "2263"]
[BlackElo "1622"]
[TimeControl "300"]
[EndTime "17:03:53 PDT"]
[Termination "gobbles19 won by resignation"]

1. e4 {[%clk 0:04:56]} 1... e5 {[%clk 0:04:56.6]} 2. d4 {[%clk 0:04:54.1]} 2...
exd4 {[%clk 0:04:55.1]} 3. c3 {[%clk 0:04:53.7]} 3... d5 {[%clk 0:04:53.9]} 4.
exd5 {[%clk 0:04:52.3]} 4... Qxd5 {[%clk 0:04:52.9]} 5. cxd4 {[%clk 0:04:52]}
5... Nc6 {[%clk 0:04:50.5]} 6. Nf3 {[%clk 0:04:51.5]} 6... Bg4 {[%clk
0:04:48.8]} 7. Be2 {[%clk 0:04:50.2]} 7... Bb4+ {[%clk 0:04:31.3]} 8. Nc3 {[%clk
0:04:48.8]} 8... Bxc3+ {[%clk 0:04:16.1]} 9. bxc3 {[%clk 0:04:48.7]} 9... Bxf3
{[%clk 0:04:14.2]} 10. Bxf3 {[%clk 0:04:46.3]} 10... Qb5 {[%clk 0:04:12.1]} 11.
Be2 {[%clk 0:04:33.5]} 11... Qf5 {[%clk 0:04:09]} 12. O-O {[%clk 0:04:30.4]}
12... Nge7 {[%clk 0:04:08.5]} 13. Bd3 {[%clk 0:04:27]} 13... Qf6 {[%clk
0:04:05.3]} 14. Rb1 {[%clk 0:04:19.6]} 14... b6 {[%clk 0:04:02.8]} 15. Re1
{[%clk 0:04:05.8]} 15... O-O {[%clk 0:04:01.5]} 16. Qg4 {[%clk 0:03:53.5]} 16...
Ng6 {[%clk 0:03:48.8]} 17. Bg5 {[%clk 0:03:46.7]} 17... Qd6 {[%clk 0:03:39.5]}
18. h4 {[%clk 0:03:39.4]} 18... Nce5 {[%clk 0:03:27.4]} 19. dxe5 {[%clk
0:03:15.4]} 19... Qxd3 {[%clk 0:03:25.7]} 20. h5 {[%clk 0:03:12.6]} 20... Nh8
{[%clk 0:03:20.9]} 21. Bf6 {[%clk 0:03:05.2]} 21... g6 {[%clk 0:03:16.2]} 22.
hxg6 {[%clk 0:02:58.4]} 22... Qxg6 {[%clk 0:03:10.1]} 23. Qc4 {[%clk 0:02:51.4]}
23... c5 {[%clk 0:03:00.9]} 24. Rbd1 {[%clk 0:02:49.6]} 24... Rfe8 {[%clk
0:02:47.3]} 25. Re4 {[%clk 0:02:45.2]} 25... h5 {[%clk 0:02:38.1]} 26. Re3
{[%clk 0:02:43.5]} 26... Qh6 {[%clk 0:02:30.6]} 27. Rd7 {[%clk 0:02:23.5]} 27...
Qh7 {[%clk 0:02:20.8]} 28. Bxh8 {[%clk 0:02:19.2]} 28... Kxh8 {[%clk 0:02:16.3]}
29. Rxf7 {[%clk 0:02:17.3]} 29... Qg6 {[%clk 0:01:54.9]} 30. Rg3 {[%clk
0:01:59]} 30... Qh6 {[%clk 0:01:50.5]} 31. Rf6 {[%clk 0:01:53.4]} 31... Qh7
{[%clk 0:01:46.4]} 32. Qf4 {[%clk 0:01:52.1]} 32... Rg8 {[%clk 0:01:41]} 33. Rh6
{[%clk 0:01:49.6]} 33... Rxg3 {[%clk 0:01:34.9]} 34. Rxh7+ {[%clk 0:01:47.1]}
34... Kxh7 {[%clk 0:01:33.4]} 1-0

[Event "Live Chess"]
[Site "Chess.com"]
[Date "2024.06.02"]
[Round "-"]
[White "AlexanderMatlak"]
[Black "ShanthamGrarks"]
[Result "1-0"]
[WhiteElo "2403"]
[BlackElo "1845"]
[TimeControl "300"]
[EndTime "17:03:53 PDT"]
[Termination "AlexanderMatlak won by resignation"]

1. c4 {[%clk 0:04:50.2]} 1... e6 {[%clk 0:04:58.6]} 2. Nf3 {[%clk 0:04:48.8]}
2... Nf6 {[%clk 0:04:58.1]} 3. g3 {[%clk 0:04:48.1]} 3... b6 {[%clk 0:04:57.7]}
4. Bg2 {[%clk 0:04:47.6]} 4... Bb7 {[%clk 0:04:57.3]} 5. O-O {[%clk 0:04:46.9]}
5... Nc6 {[%clk 0:04:56]} 6. d4 {[%clk 0:04:45.6]} 6... d5 {[%clk 0:04:54.9]} 7.
Ne5 {[%clk 0:04:43.6]} 7... Nxe5 {[%clk 0:04:52.4]} 8. dxe5 {[%clk 0:04:43.5]}
8... Ng8 {[%clk 0:04:43.5]} 9. cxd5 {[%clk 0:04:42.5]} 9... Bxd5 {[%clk
0:04:41.7]} 10. Qa4+ {[%clk 0:04:37.1]} 10... c6 {[%clk 0:04:33.4]} 11. e4
{[%clk 0:04:32.6]} 11... b5 {[%clk 0:04:27.7]} 12. Qa6 {[%clk 0:04:27.5]} 12...
Bc4 {[%clk 0:04:10]} 13. Qxc6+ {[%clk 0:04:26.3]} 13... Ke7 {[%clk 0:04:09.1]}
14. b3 {[%clk 0:04:20.5]} 14... Rc8 {[%clk 0:04:05.5]} 15. Ba3+ {[%clk
0:04:18.6]} 1-0